lending/lending_fUSD_20240731
["ID","MTS","AMOUNT","RATE_DAILY","PERIOD"]
[333748658,1722442238774,-556.6078007,0.00011,2]
[333748694,1722442240383,-1352.08206824,0.00011,2]
[333748697,1722442240395,-1042.53380516,0.00011,2]
[333748699,1722442240405,-3764.05897561,0.00011,2]
[333748701,1722442240416,-8180.98956712,0.00011,2]
[333748704,1722442240439,-68523.96241581,0.00011,2]
[333748706,1722442240450,-535.85788251,0.00011,2]
[333748709,1722442240461,-1534.61932229,0.00011,2]
[333748711,1722442240471,-157.33426488,0.00011,2]
[333748713,1722442240481,-12715.12061814,0.00011,2]
[333748719,1722442240539,-48542.84763065,0.00011,2]
[333748724,1722442240594,-1818.9,0.00011,2]
[333748726,1722442240606,-405.5033383,0.00011,2]
[333748727,1722442240617,-1360.58711801,0.00011,2]
[333748729,1722442240628,-380.5520982,0.00011,2]
[333748731,1722442240639,-320.10297877,0.00011,2]
[333748733,1722442240658,-1881.37911351,0.00011,2]
[333748735,1722442240673,-1086.34670665,0.00011,2]
[333748737,1722442240701,-5592.74364785,0.00011,2]
[333748738,1722442240714,-4285.81638443,0.00011,2]
[333748739,1722442240757,-16217.0000304,0.00011,2]
[333748740,1722442240769,-12694.96982004,0.00011,2]
[333748741,1722442240781,-1031.00172718,0.00011,2]
[333748742,1722442240793,-359.58943198,0.00011,2]
[333748743,1722442240817,-837.74750378,0.00011,2]
[333748751,1722442243433,-673.98,0.00011,2]
[333748752,1722442243445,-2983.2103724,0.00011,2]
[333748753,1722442243456,-2109.7800008,0.00011,2]
[333748754,1722442243484,-532.35328105,0.00011,2]
[333748755,1722442243496,-3722.0,0.00011,2]
[333748756,1722442243508,-10290.3229,0.00011,2]
[333748757,1722442243538,-330.5,0.00011,2]
[333748758,1722442243549,-67370.9792245,0.00011,2]
[333749046,1722442246439,-515.0,0.00011,2]
[333749048,1722442246451,-359639.93200879,0.00011,2]
[333749062,1722442246522,-194092.46581702,0.00011,2]
[333749065,1722442246531,-5046.9717899,0.00011,2]
[333749068,1722442246542,-3600.0,0.00011,2]
[333749075,1722442246573,-744.02902655,0.00011,2]
[333749083,1722442246603,-2092.81734162,0.00011,2]
[333749105,1722442246713,-870.02281823,0.00011,2]
[333749248,1722442488699,222.34,0.0001337,30]
[333749250,1722443002967,203.81,0.0001337,30]
[333749251,1722443023346,501.97607525,0.00027,120]
[333749286,1722443431508,-463.85,8.219e-05,2]
[333749287,1722443431517,-174.83830435,9.716e-05,2]
[333749288,1722443431649,-2011.77253865,9.716e-05,2]
[333749289,1722443431658,-250.0,9.765e-05,2]
[333749290,1722443431668,-155.37,9.834e-05,2]
[333749291,1722443431678,-2086.77,9.849e-05,2]
[333749292,1722443431687,-219.55,9.863e-05,2]
[333749293,1722443431696,-9129.18,9.888e-05,2]
[333749294,1722443431706,-211.7,0.00010021,2]
[333749295,1722443431715,-999.99,0.00010021,2]
[333749296,1722443431724,-1846.6455,0.00010034,2]
[333749297,1722443431736,-567.9,0.00010117,2]
[333749298,1722443431759,-911.09,0.00010117,2]
[333749299,1722443431783,-912.04,0.00010195,2]
[333749300,1722443431812,-178.16,0.00010333,2]
[333749302,1722443431835,-150.0,0.00010433,2]
[333749304,1722443431874,-9999.99,0.00010434,2]
[333749305,1722443431918,-463.85,0.00010465,2]
[333749306,1722443431971,-12804.49110925,0.000105,2]
[333749307,1722443432032,-168.69,0.00010547,2]
[333749308,1722443432054,-41098.90045035,0.0001059,2]
[333749309,1722443432075,-529.74,0.00010685,2]
[333749310,1722443432111,-7852.7313,0.0001079,2]
[333749311,1722443432128,-6558.451,0.000108,2]
[333749312,1722443432137,-34331.26364419,0.0001088,2]
[333749313,1722443432271,-438.97982347,0.0001088,2]
[333749314,1722443432352,-6345.85812132,0.0001088,2]
[333749315,1722443432362,-2022.9148,0.000109,2]
[333749316,1722443432372,-8599.0039,0.000109,2]
[333749317,1722443432381,-2947.3771,0.000109,2]
[333749318,1722443432392,-223.73095028,0.000109,2]
[333749319,1722443432402,-1000.0,0.000109,2]
[333749320,1722443432412,-1549.4171,0.000109,2]
[333749321,1722443432421,-7500.0,0.000109,2]
[333749322,1722443432431,-5010.97870401,0.000109,2]
[333749323,1722443432440,-500.0,0.00010921,2]
[333749324,1722443432450,-500.0,0.0001093,2]
[333749325,1722443432459,-500.0,0.00010938,2]
[333749326,1722443432467,-500.0,0.00010947,2]
[333749327,1722443432477,-500.0,0.00010956,2]
[333749328,1722443432486,-250.0,0.00010959,2]
[333749329,1722443432496,-500.0,0.00010965,2]
[333749330,1722443432505,-500.0,0.00010974,2]
[333749331,1722443432516,-1370.0,0.0001098,2]
[333749332,1722443432525,-500.0,0.00010982,2]
[333749333,1722443432535,-10327.00008,0.00010989,2]
[333749334,1722443432545,-500.0,0.00010991,2]
[333749335,1722443432554,-11901.8715649,0.00010998,2]
[333749336,1722443432564,-6072.0379345,0.00010998,2]
[333749337,1722443432574,-278.24866332,0.00010999,2]
[333749338,1722443432584,-1518.02409611,0.00010999,2]
[333749339,1722443432593,-8602.36694466,0.00011,2]
[333749351,1722443438298,-4347.07281267,0.00011,2]
[333749352,1722443438310,-97361.55361031,0.00011,2]
[333749355,1722443439846,-1759.3368148,0.00010998,2]
[333749356,1722443439857,-44202.51122483,0.00011,2]
[333749357,1722443439867,-312114.76310835,0.00011,2]
[333749358,1722443439884,-587.72819476,0.00011,2]
[333749362,1722443442732,-4624.0,0.00011,2]
[333749403,1722443445753,-669.24582,0.00011,2]
[333749405,1722443445995,-463.79774381,0.00011,2]
[333749471,1722443513048,186.82,0.0001337,30]
[333749499,1722444006983,171.25,0.0001337,30]
[333749532,1722444606986,156.97,0.0001337,30]
[333749554,1722444632651,-479.3,8.219e-05,2]
[333749555,1722444632661,-439.10670498,8.219e-05,2]
[333749556,1722444632670,-169.36,9.765e-05,2]
[333749557,1722444632680,-1000.0,9.78e-05,2]
[333749558,1722444632690,-820.5903,9.9e-05,2]
[333749559,1722444632699,-352.04455352,0.0001,2]
[333749560,1722444632711,-641.4408,0.0001,2]
[333749561,1722444632741,-256.51464648,0.0001,2]
[333749562,1722444632751,-400.0,0.0001,3]
[333749563,1722444632760,-900.0,0.000101,3]
[333749564,1722444632770,-151.48676095,0.000102,3]
[333749565,1722444632781,-1248.51323905,0.000102,3]
[333749566,1722444632791,-150.0,0.00010274,2]
[333749567,1722444632800,-1517.34577512,0.000103,3]
[333749568,1722444632812,-382.65422488,0.000103,3]
[333749569,1722444632822,-171.77,0.00010339,2]
[333749570,1722444632832,-499.99,0.00010339,2]
[333749571,1722444632842,-156.88,0.00010399,2]
[333749572,1722444632852,-1594.04297048,0.000104,3]
[333749573,1722444632865,-805.95702952,0.000104,3]
[333749574,1722444632874,-479.3,0.00010479,2]
[333749575,1722444632884,-5261.63874049,0.000105,2]
[333749576,1722444632896,-642.25236876,0.000105,2]
[333749577,1722444632906,-400.0,0.000105,3]
[333749578,1722444632915,-400.0,0.000106,3]
[333749579,1722444632925,-400.0,0.000107,3]
[333749580,1722444632934,-472.0142,0.000108,2]
[333749581,1722444632942,-400.0,0.000108,3]
[333749582,1722444632952,-150.0,0.00010888,2]
[333749583,1722444632962,-9644.79717655,0.00010889,2]
[333749584,1722444632973,-1343.13806031,0.00010889,2]
[333749585,1722444632985,-5597.98342403,0.00010889,2]
[333749586,1722444632996,-4213.01591126,0.00010889,2]
[333749587,1722444633013,-559.16376246,0.00010889,2]
[333749588,1722444633025,-976.69261047,0.00010889,2]
[333749589,1722444633037,-635.97483763,0.00010889,2]
[333749590,1722444633048,-531.17276182,0.00010889,2]
[333749591,1722444633076,-3254.47536323,0.00010889,2]
[333749592,1722444633088,-883.54995,0.00010889,2]
[333749593,1722444633099,-410.33594224,0.00010889,2]
[333749594,1722444633110,-436.13405776,0.00010889,2]
[333749595,1722444633121,-350.2299999,0.00010889,2]
[333749596,1722444633133,-2027.35533,0.00010889,2]
[333749597,1722444633149,-6683.18641234,0.00010889,2]
[333749598,1722444633159,-3983.0,0.0001089,2]
[333749599,1722444633170,-1269.04598405,0.0001089,2]
[333749600,1722444633182,-1730.95401595,0.0001089,2]
[333749601,1722444633191,-2329.10198405,0.0001089,2]
[333749604,1722444638032,-219.43731595,0.0001089,2]
[333749605,1722444638042,-1000.0,0.0001089,2]
[333749606,1722444638052,-7500.0,0.000109,2]
[333749607,1722444638061,-1245.0,0.000109,3]
[333749608,1722444638071,-1370.0,0.0001098,2]
[333749610,1722444638081,-169.36,0.00010986,2]
[333749612,1722444638090,-1196.1625587,0.0001099,2]
[333749614,1722444638102,-5855.29363278,0.0001099,2]
[333749615,1722444638113,-9399.64138,0.0001099,2]
[333749616,1722444638124,-1384.00162227,0.0001099,2]
[333749617,1722444638136,-423.49,0.0001099,2]
[333749618,1722444638148,-900.0,0.0001099,2]
[333749658,1722444639910,-228.38,0.0001098,2]
[333749659,1722444639920,-495.79686417,0.0001099,2]
[333749660,1722444639974,-1172.35999998,0.0001099,2]
[333749661,1722444639986,-933.43431332,0.0001099,2]
[333749662,1722444640148,-1044.81314153,0.0001099,2]
[333749663,1722444640161,-3602.21195516,0.0001099,2]
[333749664,1722444640172,-2852.97490331,0.0001099,2]
[333749665,1722444640184,-64735.92359283,0.0001099,2]
[333749666,1722444640256,-3777.50181625,0.0001099,2]
[333749667,1722444640313,-1571.41950931,0.0001099,2]
[333749691,1722444643529,-449.09310759,0.00010435,2]
[333749692,1722444643539,-1136.8757,0.0001089,2]
[333749693,1722444643548,-1411.83062741,0.0001099,2]
[333749694,1722444643567,-1013.62851621,0.0001099,2]
[333749695,1722444643602,-54637.68249517,0.0001099,2]
[333749696,1722444643638,-13546.9334,0.0001099,2]
[333749697,1722444643661,-2032.33,0.0001099,2]
[333749698,1722444643672,-14639.832,0.0001099,2]
[333749699,1722444643767,-63372.7376716,0.0001099,2]
[333749700,1722444643777,-500.0,0.00010991,2]
[333749701,1722444643786,-18546.9485522,0.00010995,2]
[333749702,1722444643796,-6286.5401017,0.00010995,2]
[333749703,1722444643805,-3198.3982324,0.00010998,2]
[333749704,1722444643815,-21365.2843588,0.00010998,2]
[333749705,1722444643824,-632.0,0.00011,2]
[333749706,1722444643835,-907999.79753075,0.00011,2]
[333749707,1722444643879,-1000.13755053,0.00011,2]
[333749716,1722444645822,-1014.775,0.00010435,2]
[333749717,1722444645842,-3567.11591837,0.00010435,2]
[333749718,1722444645936,-2412.66505719,0.00010435,2]
[333749719,1722444645946,-296.3644,0.0001089,2]
[333749720,1722444645955,-7310.06686504,0.00011,2]
[333749721,1722444645966,-1097.49896958,0.00011,2]
[333749722,1722444645977,-476.68528871,0.00011,2]
[333749723,1722444645988,-600.0,0.00011,2]
[333749724,1722444646006,-4827.49114999,0.00011,2]
[333749725,1722444646017,-6897.62698016,0.00011,2]
[333749726,1722444646028,-965.71228603,0.00011,2]
[333749727,1722444646109,-258.90026698,0.00011,2]
[333749728,1722444646129,-531.7496925,0.00011,2]
[333749729,1722444646139,-500.0,0.00011,2]
[333749739,1722444780944,10000.0,7.87e-05,2]
[333749741,1722444807247,150.0,7.87e-05,2]
[333749742,1722444807267,150.0,7.87e-05,2]
[333749743,1722444807291,150.0,7.87e-05,2]
[333749744,1722444807313,150.0,7.87e-05,2]
[333749745,1722444807333,150.0,7.87e-05,2]
[333749746,1722444807354,8513.16857934,7.87e-05,2]
[333749747,1722444811187,1370.18392448,7.87e-05,2]
[333749748,1722444816537,150.0,7.87e-05,2]
[333749749,1722444816560,150.0,7.87e-05,2]
[333749750,1722444816580,144.29424297,7.87e-05,2]
[333749751,1722444821528,5.70575703,7.87e-05,2]
[333749752,1722444821552,150.0,7.87e-05,2]
[333749753,1722444821573,59.94711535,7.87e-05,2]
[333749754,1722444821860,90.05288465,7.87e-05,2]
[333749755,1722444821882,781.44714814,7.87e-05,2]
[333749756,1722444823641,7572.30488088,7.87e-05,2]
[333749757,1722444824817,485.21486413,7.87e-05,2]
[333749758,1722444825735,177277.68060303,7.87e-05,2]
[333749759,1722444849687,365.27,7.853e-05,2]
[333749761,1722444911150,1632.8835167,7.853e-05,2]
[333749762,1722444911533,20374.08569997,7.853e-05,2]
[333749763,1722444911580,797.73433365,7.853e-05,2]
[333749764,1722444911747,156.04013556,7.853e-05,2]
[333749765,1722444911781,183796.20093035,7.853e-05,2]
[333749766,1722444916275,1222.70109988,7.853e-05,2]
[333749767,1722444920406,425.53898773,7.853e-05,2]
[333749768,1722444920456,961.60302974,7.853e-05,2]
[333749769,1722444922042,9806.29414152,7.853e-05,2]
[333749770,1722444933728,411.57531364,7.853e-05,2]
[333749771,1722444934915,250.0,7.853e-05,2]
[333749772,1722444942364,1370.18392448,7.853e-05,2]
[333749779,1722444946552,227.57161283,7.853e-05,2]
[333749780,1722444949869,485.21486413,7.853e-05,2]
[333749781,1722444957860,841.28178531,7.853e-05,2]
[333749782,1722444959615,7572.30488088,7.853e-05,2]
[333749783,1722444965266,9263.16857934,7.853e-05,2]
[333749801,1722445000147,990.49762423,7.853e-05,2]
[333749802,1722445005739,183796.20093035,7.853e-05,2]
[333749803,1722445009459,186.71529542,7.853e-05,2]
[333749804,1722445011523,20374.08569997,7.853e-05,2]
[333749805,1722445020527,425.53898773,7.853e-05,2]
[333749806,1722445020562,6537.52942768,7.853e-05,2]
[333749807,1722445026302,1222.70109988,7.853e-05,2]
[333749808,1722445030932,411.57531364,7.853e-05,2]
[333749809,1722445031151,348.02378565,7.853e-05,2]
[333749810,1722445035035,1370.18392448,7.853e-05,2]
[333749811,1722445035226,425.53898773,7.853e-05,2]
[333749812,1722445035558,227.57161283,7.853e-05,2]
[333749813,1722445046133,348.02378565,7.853e-05,2]
[333749814,1722445055836,485.21486413,7.853e-05,2]
[333749815,1722445056328,1222.70109988,7.853e-05,2]
[333749816,1722445065617,2590.56875044,7.853e-05,2]
[333749818,1722445089759,173926.8159746,7.853e-05,2]
[333749819,1722445089782,9869.38495575,7.853e-05,2]
[333749820,1722445094040,3758.46637805,7.853e-05,2]
[333749821,1722445094290,9263.16857934,7.853e-05,2]
[333749822,1722445104740,183796.20093035,7.853e-05,2]
[333749823,1722445114043,5447.94118974,7.853e-05,2]
[333749824,1722445114330,10000.0,7.853e-05,2]
[333749825,1722445124277,9263.16857934,7.853e-05,2]
[333749826,1722445128694,245.34244178,7.853e-05,2]
[333749827,1722445132386,1370.18392448,7.853e-05,2]
[333749828,1722445138564,227.57161283,7.853e-05,2]
[333749829,1722445148545,425.53898773,7.853e-05,2]
[333749830,1722445158859,485.21486413,7.853e-05,2]
[333749831,1722445163523,425.53898773,7.853e-05,2]
[333749832,1722445171410,156.97,0.0001337,30]
[333749833,1722445180302,1222.70109988,7.853e-05,2]
[333749834,1722445253259,183796.20093035,7.853e-05,2]
[333749837,1722445266121,5447.94118974,7.853e-05,2]
[333749838,1722445271540,227.57161283,7.853e-05,2]
[333749839,1722445275720,1236.76105653,7.853e-05,2]
[333749840,1722445275867,485.21486413,7.853e-05,2]
[333749841,1722445276532,425.53898773,7.853e-05,2]
[333749842,1722445280285,1222.70109988,7.853e-05,2]
[333749843,1722445288291,9263.16857934,7.853e-05,2]
[333749844,1722445291538,425.53898773,7.853e-05,2]
[333749845,1722445351855,183796.20093035,7.853e-05,2]
[333749847,1722445356028,2838.37735985,7.853e-05,2]
[333749848,1722445358117,227.57161283,7.853e-05,2]
[333749849,1722445378300,9263.16857934,7.853e-05,2]
[333749850,1722445381290,1222.70109988,7.853e-05,2]
[333749852,1722445399871,425.53898773,7.853e-05,2]
[333749855,1722445445026,2838.37735985,7.853e-05,2]
[333749856,1722445454543,227.57161283,7.853e-05,2]
[333749858,1722445463267,4397.45258168,7.853e-05,2]
[333749859,1722445471260,183796.20093035,7.853e-05,2]
[333749860,1722445482303,1222.70109988,7.853e-05,2]
[333749863,1722445511537,383.12697652,7.853e-05,2]
[333749864,1722445545017,2838.37735985,7.853e-05,2]
[333749865,1722445553947,5555.79456375,7.853e-05,2]
[333749866,1722445553977,10000.0,7.853e-05,2]
[333749867,1722445554002,10000.0,7.853e-05,2]
[333749868,1722445554024,10000.0,7.853e-05,2]
[333749869,1722445554046,10000.0,7.853e-05,2]
[333749870,1722445554068,10000.0,7.853e-05,2]
[333749871,1722445554089,10000.0,7.853e-05,2]
[333749872,1722445554112,10000.0,7.853e-05,2]
[333749873,1722445554136,10000.0,7.853e-05,2]
[333749874,1722445554161,10000.0,7.853e-05,2]
[333749875,1722445554183,41537.51287736,7.853e-05,2]
[333749876,1722445562095,227.57161283,7.853e-05,2]
[333749878,1722445580300,1128.63715881,7.853e-05,2]
[333749879,1722445592074,227.57161283,7.853e-05,2]
[333749880,1722445606593,-399.3,8.219e-05,2]
[333749884,1722445670553,156.97,0.0001337,30]
[333749894,1722445799495,3602.82814129,0.0001337,30]
[333749898,1722445832039,-2173.81865729,8.219e-05,2]
[333749899,1722445832049,-431.97788111,8.219e-05,2]
[333749900,1722445832061,-57.40211889,8.219e-05,2]
[333749901,1722445832070,-169.55,8.219e-05,2]
[333749902,1722445832080,-1002.3227,9.419e-05,2]
[333749903,1722445832090,-654.19231639,9.901e-05,2]
[333749904,1722445832121,-27.98768361,9.901e-05,2]
[333749905,1722445832130,-250.0,9.901e-05,2]
[333749906,1722445832140,-298.38,9.955e-05,2]
[333749907,1722445832150,-800.0,9.981e-05,2]
[333749908,1722445832159,-997.87,9.998e-05,2]
[333749909,1722445832168,-300.0,9.999e-05,2]
[333749910,1722445832178,-300.0,9.999e-05,2]
[333749911,1722445832187,-1250.0,0.0001,2]
[333749912,1722445832197,-200.0,0.0001004,2]
[333749913,1722445832206,-356.05,0.00010378,2]
[333749914,1722445832216,-150.0,0.00010378,2]
[333749915,1722445832227,-356.05,0.00010378,2]
[333749916,1722445832237,-117.09713528,0.00010475,2]
[333749917,1722445832308,-372.28286472,0.00010475,2]
[333749918,1722445832318,-90.2492986,0.00010478,2]
[333749919,1722445832350,-135.1707014,0.00010478,2]
[333749920,1722445832359,-3900.8612986,0.000105,2]
[333749921,1722445832370,-609.36876,0.000105,2]
[333749923,1722445832390,-7088.62100558,0.000105,2]
[333749925,1722445832400,-1047.0,0.00010567,2]
[333749927,1722445832410,-2678.96,0.00010673,2]
[333749929,1722445832419,-3000.0,0.0001089,2]
[333749930,1722445832429,-259.5867,0.00010895,2]
[333749932,1722445832439,-661.2751,0.00010895,2]
[333749933,1722445832449,-150.0,0.00010899,2]
[333749935,1722445832458,-2748.8272,0.000109,2]
[333749936,1722445832469,-168.24239597,0.000109,2]
[333749937,1722445832480,-182.25416917,0.000109,2]
[333749938,1722445832489,-7500.0,0.000109,2]
[333749939,1722445832499,-1370.0,0.0001098,2]
[333749940,1722445832508,-6587.18763411,0.00010985,2]
[333749941,1722445832518,-184.821687,0.00010995,2]
[333749942,1722445832753,-2880.6324015,0.00010995,2]
[333749943,1722445832763,-19238.9075205,0.00010995,2]
[333749944,1722445832777,-17073.2165969,0.00010995,2]
[333749945,1722445832786,-420.0,0.00010999,2]
[333749946,1722445832796,-669.0,0.00011,2]
[333749947,1722445832807,-221755.49835503,0.00011,2]
[333749948,1722445832822,-1443.6854515,0.00011,2]
[333749949,1722445832834,-468313.10366267,0.00011,2]
[333749950,1722445832844,-33091.94757092,0.00011,2]
[333749960,1722445838257,-1849.99999985,0.00010997,2]
[333749962,1722445838268,-335.57,0.00010997,2]
[333749964,1722445838280,-16963.47877388,0.00010997,2]
[333749966,1722445838289,-15807.55279142,0.00011,2]
[333749968,1722445838300,-8173.52989368,0.00011,2]
[333749972,1722445838311,-2606.31547647,0.00011,2]
[333749975,1722445838322,-2604.62300768,0.00011,2]
[333749979,1722445838333,-46745.41290371,0.00011,2]
[333749981,1722445838344,-572443.26327836,0.00011,2]
[333749983,1722445838355,-40652.74669472,0.00011,2]
[333750005,1722445838555,-522.95955266,0.00011,2]
[333750008,1722445838579,-0.01601097,0.00011,2]
[333750010,1722445838590,-2001.01364987,0.00011,2]
[333750017,1722445838652,-495.06575775,0.00011,2]
[333750021,1722445838815,-630.37381688,0.00011,2]
[333750022,1722445838827,-490.1733676,0.00011,2]
[333750023,1722445838838,-672.16249084,0.00011,2]
[333750024,1722445838851,-422.93455817,0.00011,2]
[333750025,1722445838863,-1423.16486127,0.00011,2]
[333750035,1722445840021,-3108.2,0.00011,2]
[333750036,1722445840160,-505.93543006,0.00011,2]
[333750037,1722445840208,-5739.23089856,0.00011,2]
[333750038,1722445840220,-573.30907995,0.00011,2]
[333750039,1722445840231,-252700.00000007,0.00011,2]
[333750040,1722445840471,-870645.43617681,0.00011,2]
[333750041,1722445840485,-6735.3438,0.00011,2]
[333750059,1722445842918,-689.38827045,0.00011,2]
[333750060,1722445842930,-571.48088153,0.00011,2]
[333750061,1722445842942,-33638.50000001,0.00011,2]
[333750062,1722445842983,-349.80922174,0.00011,2]
[333750063,1722445843040,-530.05992504,0.00011,2]
[333750064,1722445843053,-10054.5,0.00011,2]
[333750065,1722445843064,-701.81797035,0.00011,2]
[333750066,1722445843098,-322.80875993,0.00011,2]
[333750067,1722445843110,-1267.53629767,0.00011,2]
[333750068,1722445843157,-3702.60387149,0.00011,2]
[333750069,1722445843169,-3010.1351029,0.00011,2]
[333750070,1722445843181,-1299.42,0.00011,2]
[333750071,1722445843193,-5958.007393,0.00011,2]
[333750072,1722445843204,-67240.32,0.00011,2]
[333750074,1722445843282,-26893.4666,0.00011,2]
[333750076,1722445843294,-5477.60213001,0.00011,2]
[333750213,1722445845976,-33509.99999996,0.00011,2]
[333750216,1722445845989,-9255.5,0.00011,2]
[333750222,1722445846036,-4593.42261191,0.00011,2]
[333750226,1722445846097,-1442.96251701,0.00011,2]
[333750227,1722445846108,-866.90707002,0.00011,2]
[333750228,1722445846119,-941.56,0.00011,2]
[333750229,1722445846184,-2733.38035353,0.00011,2]
[333750230,1722445846195,-865.0618344,0.00011,2]
[333750231,1722445846207,-523.6263791,0.00011,2]
[333750232,1722445846274,-694.34763833,0.00011,2]
[333750234,1722445846286,-346.65732347,0.00011,2]
[333750243,1722446080611,975.98,8.219e-05,2]
[333750244,1722446120311,305.0,8.219e-05,2]
[333750245,1722446121988,511.34078617,8.219e-05,2]
[333750246,1722446123026,155.17684879,8.219e-05,2]
[333750247,1722446124498,797.30336427,8.219e-05,2]
[333750248,1722446125037,2838.37735985,8.219e-05,2]
[333750249,1722446126224,1632.8835167,8.219e-05,2]
[333750250,1722446126476,363.62565954,8.219e-05,2]
[333750251,1722446128907,485.21486413,8.219e-05,2]
[333750252,1722446130646,158.83612492,8.219e-05,2]
[333750253,1722446133300,1328.67863158,8.219e-05,2]
[333750254,1722446133938,871.44654427,8.219e-05,2]
[333750255,1722446134097,155.0,8.219e-05,2]
[333750256,1722446135254,3874.41146231,8.219e-05,2]
[333750257,1722446135692,858.20187844,8.219e-05,2]
[333750258,1722446138827,1530.01818463,8.219e-05,2]
[333750259,1722446140764,411.4424571,8.219e-05,2]
[333750260,1722446142081,227.57161283,8.219e-05,2]
[333750261,1722446142812,2519.49070447,8.219e-05,2]
[333750262,1722446242357,156.97,0.0001337,30]
[333750263,1722446426198,191.6,7.876e-05,2]
[333750264,1722446466750,9808.4,7.876e-05,2]
[333750265,1722446466771,10000.0,7.876e-05,2]
[333750266,1722446466794,565.68569997,7.876e-05,2]
[333750267,1722446471219,743.68408206,7.876e-05,2]
[333750268,1722446471260,1632.8835167,7.876e-05,2]
[333750269,1722446471632,227.57161283,7.876e-05,2]
[333750270,1722446474344,1267.80918541,7.876e-05,2]
[333750271,1722446479650,376.0,7.876e-05,2]
[333750272,1722446480048,2838.37735985,7.876e-05,2]
[333750273,1722446481837,2347.98854318,7.876e-05,2]
[333750274,1722446481861,9771.55490581,7.876e-05,2]
[333750275,1722446546625,228.44509419,7.876e-05,2]
[333750276,1722446546646,3549.99418086,7.876e-05,2]
[333750277,1722446547586,227.57161283,7.876e-05,2]
[333750278,1722446562244,1632.57475463,7.876e-05,2]
[333750279,1722446578281,1632.57475463,7.876e-05,2]
[333750280,1722446579289,1267.80918541,7.876e-05,2]
[333750281,1722446590068,1689.47551164,7.876e-05,2]
[333750282,1722446590090,1148.90184821,7.876e-05,2]
[333750283,1722446634347,1212.87718,7.876e-05,2]
[333750284,1722446635602,227.57161283,7.876e-05,2]
[333750286,1722446685083,2838.37735985,7.876e-05,2]
[333750287,1722446698081,972.34350774,7.876e-05,2]
[333750288,1722446717951,156.97,0.0001337,30]
[333750289,1722446731884,227.57161283,7.876e-05,2]
[333750292,1722446787108,2838.37735985,7.876e-05,2]
[333750295,1722446824115,227.57161283,7.876e-05,2]
[333750310,1722446882577,306.40790586,7.876e-05,2]
[333750311,1722446882619,2531.96945399,7.876e-05,2]
[333750317,1722446935148,227.57161283,7.876e-05,2]
[333750330,1722446985434,1694.30971003,7.876e-05,2]
[333750333,1722447003657,150.0,7.876e-05,2]
[333750334,1722447003835,150.0,7.876e-05,2]
[333750335,1722447004040,150.36666751,7.876e-05,2]
[333750348,1722447032132,-927.18,8.219e-05,2]
[333750349,1722447032142,-169.11,8.219e-05,2]
[333750350,1722447032154,-6791.29226576,9e-05,2]
[333750351,1722447032163,-150.0,9.452e-05,5]
[333750352,1722447032174,-300.0,9.546e-05,2]
[333750353,1722447032183,-227.57161283,9.547e-05,2]
[333750354,1722447032192,-340.32,9.764e-05,2]
[333750355,1722447032202,-1000.0,9.817e-05,2]
[333750356,1722447032211,-298.4,9.89e-05,2]
[333750357,1722447032220,-9846.14612141,0.0001015,2]
[333750358,1722447032280,-3360.42031715,0.0001015,2]
[333750359,1722447032357,-20093.2,0.0001015,2]
[333750365,1722447032693,-2434.05048887,0.0001015,2]
[333750368,1722447038410,-578.18307257,0.0001015,2]
[333750369,1722447038420,-160.36,0.00010436,2]
[333750371,1722447038430,-160.36,0.00010442,2]
[333750372,1722447038440,-160.36,0.00010448,2]
[333750373,1722447038449,-160.36,0.00010454,2]
[333750374,1722447038459,-160.36,0.0001046,2]
[333750375,1722447038469,-160.36,0.00010465,2]
[333750376,1722447038479,-927.18,0.00010468,2]
[333750377,1722447038489,-160.36,0.00010471,2]
[333750378,1722447038499,-160.36,0.00010477,2]
[333750379,1722447038512,-160.36,0.00010483,2]
[333750380,1722447038521,-160.36,0.00010489,2]
[333750381,1722447038531,-3754.26581163,0.00010497,2]
[333750383,1722447038541,-6562.1391158,0.000105,2]
[333750384,1722447038556,-1479.35623133,0.000105,2]